[Event "7th Sharjah Masters 2024"]
[Site "Sharjah"]
[Date "2024.05.17"]
[Round "4.32"]
[White "Sargsyan, Shant"]
[Black "Erdogmus, Yagiz Kaan"]
[Result "1-0"]
[ECO "C24"]
[WhiteElo "2637"]
[BlackElo "2554"]
[Annotator "TA"]
[PlyCount "117"]
[EventDate "2024.05.13"]
[EventType "swiss"]
[EventCountry "UAE"]
[SourceTitle "playchess.com"]
[Source "ChessBase"]
[SourceQuality "1"]
[TimeControl "5400+30"]

{[%evp 12,117,38,45,35,43,58,30,18,34,20,24,17,21,28,31,30,22,17,27,24,29,38,25,20,26,36,21,11,14,14,23,24,14,20,0,7,0,96,96,96,96,96,96,105,106,117,106,149,160,160,110,108,108,108,108,93,88,124,118,142,146,139,149,137,137,152,137,245,237,233,209,344,351,329,326,384,309,268,268,395,427,427,482,453,406,438,413,447,378,456,308,7891,464,464,0,29960,29959,29962,29971,29975,29976,29977,29978,29978,29979,29976,29975]} 1. e4 {[%emt 0:01:06]} e5 {[%emt 0:00:05]} 2. Nf3 {[%emt 0:00:12]} Nc6 {[%emt 0:00:02]} 3. Bc4 {[%emt 0:00:12]} Nf6 {[%emt 0:00:28]} 4. d3 {[%emt 0:00:10]} d5 {[%emt 0:02:17]} 5. exd5 {[%emt 0:00:44]} Nxd5 {[%emt 0:00:02]} 6. O-O {[%emt 0:00:47]} Be7 {[%emt 0:01:19]} 7. Re1 {[%emt 0:00:25]} f6 {[%emt 0:00:06]} 8. d4 {[%emt 0:03:24][%cal Rd4e5]} Bg4 {[%emt 0:01:59]} 9. c3 {[%emt 0:09:22]} exd4 {[%emt 0:15:37] White has an edge.} 10. cxd4 {[%emt 0:02:24]} Nb6 {[%emt 0:04:12]} 11. Bb3 {[%emt 0:01:24]} Qd7 {[%emt 0:18:14]} 12. h3 {[%emt 0:03:06]} Bxf3 {[%emt 0:01:25]} 13. Qxf3 {[%emt 0:00:06]} Nxd4 {[%emt 0:01:21]} 14. Qxb7 {[%emt 0:00:25]} Nxb3 {[%emt 0:01:27]} 15. axb3 {[%emt 0:00:06][%cal Oc1e3]} O-O {[%emt 0:00:43]} 16. Nc3 {[%emt 0:02:18][%cal Oc1f4]} Bb4 {[%emt 0:03:15]} 17. Rxa7 {[%emt 0:12:04]} Rxa7 {[%emt 0:06:10]} 18. Qxa7 {[%emt 0:00:31]} Qc6 {[%emt 0:02:25]} 19. Bf4 {[%emt 0:01:14]} Bxc3 {[%emt 0:03:08]} 20. bxc3 {[%emt 0:00:27]} Nd5 $1 {[%emt 0:01:04]} 21. Bd2 {[%emt 0:08:00] Black must now prevent c4.} Nxc3 {[%emt 0:01:05]} 22. Qd4 {[%emt 0:01:02]} Nd5 {[%emt 0:01:53]} 23. h4 {[%emt 0:04:50]} Qd7 {[%emt 0:04:01]} 24. b4 {[%emt 0:02:46][%cal Bb3b4,Bb4b5,Bb5b6][%mdl 32]} Nb6 {[%emt 0:05:52]} (24... h6 $11) 25. Qxd7 $16 {[%emt 0:04:26]} Nxd7 {[%emt 0:00:01][%mdl 4096] Endgame. KRB-KRN} 26. Rc1 {[%emt 0:00:10]} Rc8 {[%emt 0:01:22] [#]} 27. b5 $1 {[%emt 0:02:31]} Kf8 {[%emt 0:15:16]} 28. Bb4+ {[%emt 0:10:51]} Kf7 {[%emt 0:01:14]} 29. Ba5 {[%emt 0:07:06] White is more active.} Rb8 {[%emt 0:01:12]} 30. Rxc7 {[%emt 0:00:11]} Ke6 {[%emt 0:04:52] [#]} 31. Rc6+ {[%emt 0:01:15]} ({Better is} 31. b6 $1) 31... Kf5 {[%emt 0:02:01]} 32. b6 {[%emt 0:01:10]} h5 {[%emt 0:00:50]} 33. Kh2 {[%emt 0:02:54]} Ke5 {[%emt 0:01:10]} 34. Rc3 {[%emt 0:10:13]} Kf5 {[%emt 0:00:47]} 35. Rb3 {[%emt 0:00:47]} Rb7 {[%emt 0:00:22]} 36. Rb5+ {[%emt 0:01:42]} Ke6 {[%emt 0:00:01]} 37. Kg3 {[%emt 0:01:52]} (37. Rxh5 Ne5 $16) 37... g6 {[%emt 0:00:33]} 38. Kf4 {[%emt 0:01:03]} Kd6 {[%emt 0:00:15]} 39. Rb1 {[%emt 0:01:17]} Ke6 {[%emt 0:01:15]} (39... Rb8 $16 40. f3 Kc6) 40. f3 {[%emt 0:01:04]} Kd6 {[%emt 0:00:31]} 41. Rd1+ {[%emt 0:01:08]} Ke6 {[%emt 0:00:26]} (41... Ke7 $142 42. Kg3 (42. Rb1 Kd6 $18) 42... Ke6 (42... Nxb6 $2 43. Rb1 $18)) 42. Rc1 $18 {[%emt 0:00:08]} Rb8 {[%emt 0:00:34]} 43. Rc7 {[%emt 0:01:09]} Ra8 {[%emt 0:00:33]} 44. b7 {[%emt 0:02:28]} g5+ {[%emt 0:00:19]} 45. hxg5 {[%emt 0:01:02]} fxg5+ {[%emt 0:00:01]} 46. Ke4 {[%emt 0:00:14]} ({Not} 46. Kxg5 Rxa5+ 47. Kh4 Rb5 $11) 46... Rxa5 {[%emt 0:00:51] [#]} 47. Rxd7 $1 {[%emt 0:00:08][%mdl 512] KR-KR} Rb5 {[%emt 0:00:01]} 48. Rh7 {[%emt 0:01:30] And now Rh6+ would win.} Rb4+ {[%emt 0:00:01]} 49. Kd3 {[%emt 0:00:37]} h4 {[%emt 0:00:29]} 50. Kc3 {[%emt 0:00:40]} Rb1 {[%emt 0:00:27]} 51. Kd4 {[%emt 0:00:11] Kc5 is the strong threat.} Kf5 $2 {[%emt 0:00:53]} (51... Kd6 52. Rg7 Rb4+ 53. Kc3 Rb1 54. Rg6+ (54. Rxg5 Rxb7 55. Rg8 Rh7 $11) 54... Kc7) 52. Rf7+ {[%emt 0:00:18]} (52. Kd5 $142 {Threatening mate with Kc6.} g4 53. Kc6 (53. Rxh4 gxf3 54. gxf3 Rxb7 $11) 53... Rc1+ 54. Kd7 Rd1+ 55. Kc8) 52... Ke6 {[%emt 0:00:28]} 53. Rh7 {[%emt 0:00:58]} (53. Rg7 $18) 53... Kf5 $1 {[%emt 0:00:32]} 54. Kc5 {[%emt 0:00:29] White mates.} Kf4 {[%emt 0:00:38]} 55. Rg7 {[%emt 0:00:18]} Rb2 {[%emt 0:01:17]} 56. Kc6 {[%emt 0:00:18]} Rc2+ {[%emt 0:00:33]} 57. Kd7 {[%emt 0:00:14]} Rb2 {[%emt 0:00:30]} 58. Kc8 {[%emt 0:00:05]} Rc2+ {[%emt 0:00:32]} 59. Rc7 {[%emt 0:00:13] Weighted Error Value: White=0.30/Black=0.13 (very precise) .  Mistake:       	White=2     	Black=4      Inaccurate:     	White=1     	Black=3      OK:         	White=15    	Black=19     Best:        	White=8     	Black=5      Strong:       	White=1     	Black=2      Brilliant:      	White=1     	---} 1-0

[Event "7th Sharjah Masters 2024"]
[Site "Sharjah"]
[Date "2024.05.17"]
[Round "4.33"]
[White "Pranav Anand"]
[Black "Banusz, Tamas"]
[Result "1-0"]
[ECO "C76"]
[WhiteElo "2532"]
[BlackElo "2623"]
[Annotator "TA"]
[PlyCount "61"]
[EventDate "2024.05.13"]
[EventType "swiss"]
[EventCountry "UAE"]
[SourceTitle "playchess.com"]
[Source "ChessBase"]
[SourceQuality "1"]
[TimeControl "5400+30"]

{[%evp 17,61,47,51,37,52,11,44,27,57,53,64,54,58,47,46,56,63,46,45,35,43,18,25,14,41,31,30,0,-7,-10,-20,-26,0,-22,-18,-16,0,0,18,37,30,19,49,56,84,19]} 1. e4 {[%emt 0:01:47]} e5 {[%emt 0:00:30]} 2. Nf3 {[%emt 0:00:30]} Nc6 {[%emt 0:00:30]} 3. Bb5 {[%emt 0:00:30]} a6 {[%emt 0:00:30]} 4. Ba4 {[%emt 0:00:30]} d6 {[%emt 0:00:00]} 5. O-O {[%emt 0:00:00]} Bd7 {[%emt 0:00:00]} 6. c3 {[%emt 0:00:00]} g6 {[%emt 0:00:00]} 7. d4 {[%emt 0:00:00]} Bg7 {[%emt 0:00:00]} 8. h3 {[%emt 0:00:00]} Nge7 {[%emt 0:01:53]} 9. Re1 {[%emt 0:00:00]} O-O {[%emt 0:00:19]} 10. Be3 {[%emt 0:03:50]} Qe8 {[%emt 0:00:29][%cal Oc6d4]} 11. Bc2 {[%emt 0:01:20]} a5 {[%emt 0:00:39][%cal Ba6a5,Ba5a4][%mdl 32]} 12. Na3 {[%emt 0:09:54] White is slightly better.} Nd8 {[%emt 0:08:00]} 13. Qd2 {[%emt 0:05:12]} a4 {[%emt 0:04:22]} 14. Rad1 {[%emt 0:04:26] [#] Strongly threatening dxe5.} Bc6 {[%emt 0:04:53]} 15. Bh6 {[%emt 0:03:15]} f6 {[%emt 0:04:14]} 16. Bxg7 {[%emt 0:00:45]} Kxg7 {[%emt 0:00:02]} 17. c4 {[%emt 0:03:21] White is more active.} b6 {[%emt 0:01:23]} 18. Qc3 {[%emt 0:02:32]} Nf7 {[%emt 0:03:45]} 19. Bd3 {[%emt 0:06:42]} Bd7 {[%emt 0:05:31]} 20. Nb5 {[%emt 0:01:29]} Qb8 {[%emt 0:00:58]} 21. Bf1 {[%emt 0:01:31]} Rd8 {[%emt 0:06:09]} 22. Rd2 {[%emt 0:09:02]} c5 {[%emt 0:08:37]} 23. dxe5 {[%emt 0:03:03]} dxe5 {[%emt 0:00:07]} 24. Red1 {[%emt 0:00:06][%cal Be1d1,Bd1d2,Bd2d6][%mdl 32]} Bc6 {[%emt 0:08:48]} 25. Qc2 {[%emt 0:00:26]} Rxd2 {[%emt 0:03:27]} 26. Rxd2 {[%emt 0:01:25]} Nd8 {[%emt 0:02:01][%cal Bf7d8,Bd8e6,Be6f8][%mdl 32]} 27. Qd1 {[%emt 0:10:36]} Ne6 {[%emt 0:03:17][%cal Oc6b5]} 28. Rd6 {[%emt 0:01:06]} Qc8 {[%emt 0:12:06]} 29. Nc3 {[%emt 0:01:21] Black must now prevent Nd5.} Nf8 {[%emt 0:05:02]} 30. Nh2 {[%emt 0:02:46]} h5 {[%emt 0:06:54] Prevents Ng4} 31. g3 {[%emt 0:07:07][%mdl 32768] Weighted Error Value: White=0.12 (very precise) /Black=0.11 (very precise) .  Mistake:       	White=1     	---        Inaccurate:     	White=2     	Black=6      OK:         	White=3     	Black=6     . Loss on time!?} (31. h4 $16) 1-0

[Event "7th Sharjah Masters 2024"]
[Site "Sharjah"]
[Date "2024.05.17"]
[Round "4.34"]
[White "Ivanchuk, Vasyl"]
[Black "Erdos, Viktor"]
[Result "1/2-1/2"]
[ECO "C42"]
[WhiteElo "2609"]
[BlackElo "2546"]
[Annotator "RC"]
[PlyCount "66"]
[EventDate "2024.05.13"]
[EventType "swiss"]
[EventCountry "UAE"]
[SourceTitle "playchess.com"]
[Source "ChessBase"]
[SourceQuality "1"]
[TimeControl "5400+30"]

1. e4 {[%emt 1:31:00]} e5 {[%emt 1:31:00]} 2. Nf3 {[%emt 0:00:30]} Nf6 {[%emt 0:00:30]} 3. Nxe5 {[%emt 0:00:30]} d6 {[%emt 0:00:30]} 4. Nf3 {[%emt 0:00:30]} Nxe4 {[%emt 0:00:30]} 5. Nc3 {[%emt 0:00:30]} Nxc3 {[%emt 0:00:30]} 6. dxc3 {[%emt 0:00:30]} Be7 {[%emt 0:00:30]} 7. Be3 {[%emt 0:00:30]} O-O {[%emt 0:00:30]} 8. Qd2 {[%emt 0:00:30]} Nd7 {[%emt 0:00:30]} 9. O-O-O {[%emt 0:00:30]} Nf6 {[%emt 0:00:30]} 10. Bd3 {[%emt 0:00:30]} Re8 {[%emt 0:00:30]} 11. Rhe1 {[%emt 0:00:30]} Bg4 {[%emt 0:00:30]} 12. Bd4 {[%emt 0:00:30]} c5 {[%emt 0:00:30]} 13. Bxf6 {[%emt 0:00:30]} Bxf6 {[%emt 0:00:30]} 14. Be4 {[%emt 0:00:30]} Bxf3 {[%emt 0:00:30]} 15. Bxf3 {[%emt 0:00:30]} Rxe1 {[%emt 0:00:30]} 16. Qxe1 Rb8 {[%emt 0:00:30]} 17. Rd5 {[%emt 0:01:00]} b5 {[%emt 0:00:30]} 18. Qe3 {[%emt 0:00:30]} a5 {[%emt 0:00:30]} 19. Be2 {[%emt 0:00:30]} a4 {[%emt 0:00:30]} 20. a3 {[%emt 0:00:30]} g6 {[%emt 0:00:30]} 21. g3 {[%emt 0:00:30]} b4 {[%emt 0:00:30]} 22. cxb4 {[%emt 0:00:30]} cxb4 {[%emt 0:00:30]} 23. axb4 {[%emt 0:00:30]} Rxb4 {[%emt 0:00:30]} 24. c3 {[%emt 0:00:30]} Qa8 {[%emt 0:00:30]} 25. Rd1 {[%emt 0:00:30]} Rb8 {[%emt 0:00:30]} 26. Qf3 {[%emt 0:00:30]} a3 {[%emt 0:00:30]} 27. Qxa8 {[%emt 0:00:30]} Rxa8 {[%emt 0:00:30]} 28. bxa3 {[%emt 0:00:30]} Rxa3 {[%emt 0:00:30]} 29. Rxd6 {[%emt 0:00:30]} Bxc3 {[%emt 0:00:30]} 30. Ra6 {[%emt 0:00:30]} Rxa6 {[%emt 0:00:30]} 31. Bxa6 {[%emt 0:00:30]} Bd4 {[%emt 0:00:30]} 32. f3 {[%emt 0:00:30]} Bg1 {[%emt 0:00:30]} 33. h3 {[%emt 0:00:30]} Bh2 {[%emt 0:00:30]} 1/2-1/2

[Event "7th Sharjah Masters 2024"]
[Site "Sharjah"]
[Date "2024.05.17"]
[Round "4.35"]
[White "Raja Rithvik R"]
[Black "Gupta, Abhijeet"]
[Result "0-1"]
[ECO "E70"]
[WhiteElo "2524"]
[BlackElo "2604"]
[Annotator "TA"]
[PlyCount "82"]
[EventDate "2024.05.13"]
[EventType "swiss"]
[EventCountry "UAE"]
[SourceTitle "playchess.com"]
[Source "ChessBase"]
[SourceQuality "1"]
[TimeControl "5400+30"]

{[%evp 45,82,0,118,65,115,143,133,0,8,18,202,210,230,219,225,60,87,17,225,221,319,0,261,18,239,-245,-256,-1249,-1225,-1261,-1200,-29991,-8,-29992,-29993,-29993,-29994,-29994,-29995]} 1. d4 {[%emt 0:04:00]} Nf6 {[%emt 0:00:27]} 2. c4 {[%emt 0:00:05]} g6 {[%emt 0:00:09]} 3. Nc3 {[%emt 0:00:05]} Bg7 {[%emt 0:00:07]} 4. e4 {[%emt 0:00:06]} d6 {[%emt 0:00:05]} 5. Nge2 {[%emt 0:00:09]} O-O {[%emt 0:00:49]} 6. Ng3 {[%emt 0:00:08]} h5 {[%emt 0:00:42]} 7. Be2 {[%emt 0:00:05] E70: King's Indian: Miscellaneous lines with 4 e4, including 5 Nge2 and 5 Bd3 0-0 6 Nge2.} a5 {[%emt 0:00:45]} 8. Be3 {[%emt 0:14:41]} a4 $146 {[%emt 0:01:24]} ({Predecessor:} 8... e5 9. d5 Na6 10. f3 Bd7 11. Nf1 Nc5 12. Nd2 a4 13. O-O Qe7 14. b4 axb3 15. axb3 {½-½ Emelyanov,M (2543)-Akdag,M (2568) W-ch37 q03 email 2017}) 9. a3 {[%emt 0:05:24]} e5 {[%emt 0:06:43]} 10. d5 {[%emt 0:04:40]} Nbd7 {[%emt 0:05:29]} 11. Bg5 {[%emt 0:25:42]} Nc5 {[%emt 0:00:39]} 12. Bxh5 {[%emt 0:02:14]} Qe8 {[%emt 0:08:06]} 13. Be2 {[%emt 0:01:08]} Nh7 {[%emt 0:01:04]} 14. Be3 {[%emt 0:02:33]} Nb3 {[%emt 0:01:17]} 15. Rb1 {[%emt 0:00:10]} f5 {[%emt 0:00:45]} 16. exf5 {[%emt 0:00:51]} gxf5 {[%emt 0:00:49]} 17. f4 {[%emt 0:00:13]} exf4 {[%emt 0:03:09]} 18. Bxf4 {[%emt 0:00:53]} Bd4 {[%emt 0:01:43]} 19. Qd3 {[%emt 0:03:24]} Bd7 {[%emt 0:04:40]} 20. Kd1 {[%emt 0:03:07]} Be5 {[%emt 0:06:25]} 21. Rf1 {[%emt 0:04:24]} Kh8 {[%emt 0:01:44]} 22. Kc2 {[%emt 0:13:10]} Nd4+ {[%emt 0:01:24]} 23. Kd2 {[%emt 0:00:06]} b5 {[%emt 0:00:57]} (23... Nb3+ $1 $11 24. Kd1 Qg6) 24. Bh5 {[%emt 0:04:07]} (24. cxb5 Rb8) ({White should play} 24. Nxb5 $16 Bxb5 25. cxb5) 24... Qd8 {[%emt 0:15:42]} (24... Nb3+ $14 25. Kc2 bxc4 26. Qxc4 Nd4+ 27. Kd3 (27. Qxd4 Bxd4 28. Bxe8 Raxe8 $18) 27... Qd8) 25. Rbe1 $1 $16 {[%emt 0:02:22]} (25. Bxe5+ dxe5 26. Qe3 Qf6 $17) 25... Bg7 {[%emt 0:03:11]} (25... bxc4 26. Bxe5+ dxe5 27. Qe3 $16) 26. Bd1 {[%emt 0:01:29]} (26. cxb5 $16 {Bd1 would now be deadly.} Rb8 27. Be3 (27. Nxa4 $2 Bxb5 28. Qe3 Bxa4 $19) 27... Nxb5 28. Nxf5 (28. Nxa4 f4 $11) 28... Nxc3 29. bxc3 Rxf5 30. Rxf5 Bxf5 31. Qxf5) 26... bxc4 $11 {[%emt 0:00:59]} 27. Qxc4 {[%emt 0:00:02]} Rb8 $2 {[%emt 0:06:54]} (27... Bc8 $1 $11) 28. Kc1 $18 {[%emt 0:04:06]} (28. Nxa4 Bb5 29. Qc1 Qd7 $19) 28... Bb5 {[%emt 0:01:35]} 29. Nxb5 $1 {[%emt 0:00:05]} Rxb5 {[%emt 0:00:03]} 30. Qxa4 $2 {[%emt 0:01:43]} (30. Bxa4 $2 Rc5 $19) ({White has to play} 30. Kb1 $1 $18 {[%cal Og3h5] Nh5! is the strong threat.} Qb8 31. Bc1 (31. Qxa4 $2 Rxb2+ 32. Kc1 Rb1+ 33. Kd2 Qb2+ 34. Bc2 Rxe1 $19)) 30... Qb8 $1 $14 {[%emt 0:00:45]} 31. Rf2 {[%emt 0:02:14]} (31. Nh5 $16 Rxb2 32. Nxg7 Rb1+ 33. Kd2 Qb2+ 34. Kd3) 31... Rc5+ $2 {[%emt 0:01:41]} (31... Qb7 $11 32. Be3 c5) 32. Kb1 $18 {[%emt 0:00:12]} Nb5 {[%emt 0:00:11]} (32... Qb7 {was worth a try.} 33. Nh5 Nb5) 33. Ka2 $2 {[%emt 0:02:25]} (33. Bb3 $18) 33... Qb7 $2 {[%emt 0:05:33][%mdl 8192]} (33... Bxb2 $1 $11 34. Kxb2 Nc3+ 35. Qb4 Nxd1+ 36. Rxd1 Rb5) 34. Rfe2 $2 {[%emt 0:00:11]} (34. Re3 $18) 34... Nf6 $2 {[%emt 0:02:12]} (34... Bxb2 $1 $11 {and Black stays safe.} 35. Kxb2 (35. Rxb2 Qxd5+ 36. Qb3 Ra8 $11) 35... Nc3+ 36. Qb4 Nxd1+ 37. Ka1 (37. Rxd1 Rb5 $15) 37... Qxd5) 35. Bb3 $4 {[%emt 0:01:07][%mdl 8192] [#]} (35. Nxf5 Qxd5+ (35... Nxd5 $2 36. Bd2 $18) 36. Bb3 Qxf5 $15) (35. Be3 $18 Rxd5 36. Bb3) 35... Ra8 $1 $19 {[%emt 0:11:12]} 36. Qb4 $2 {[%emt 0:00:04]} (36. Qxa8+ Qxa8 37. Nxf5) 36... Nxd5 $19 {[%emt 0:02:07]} 37. Re8+ {[%emt 0:00:58]} Kh7 {[%emt 0:00:27]} 38. Qd2 {[%emt 0:00:34] [#]} Nxa3 $2 (38... Nbc3+ $1 {[%mdl 512] mates} 39. bxc3 Nxc3+ 40. Qxc3 Rxa3+ (40... Bxc3 41. R1e7+ Bg7 42. Bg8+ Kg6 43. Bf7+ Kh7 44. Bg8+ Kg6 45. Bf7+ Kh7 46. Bg8+ $11) (40... Rxc3 41. Bg8+ Kg6 42. R8e6+ Bf6 43. Rxf6+ Kxf6 44. Re6+ Kg7 45. Nxf5+ Kxg8 46. Rg6+ Kf7 47. Rg7+ Kf6 48. Bg5+ Kxf5 49. g4+ Ke4 50. Re7+ Kd5 51. Re5+ dxe5 52. Be7 Rc2+ 53. Ka1 Qb2#) 41. Kxa3 Rxc3 (41... Bxc3 42. R1e7+ Bg7 43. Bg8+ Kg6 44. Bf7+ Kh7 45. Bg8+ Kg6 46. Bf7+ Kh7 47. Bg8+ $11) (41... Qa6+ 42. Kb2 Bxc3+ 43. Kb1 Qd3+ 44. Bc2 Rb5+ 45. Kc1 Bb2+ 46. Kb1 Ba3+ 47. Ka1 Qc3+ 48. Ka2 Qb2#) 42. Rh8+ Kxh8 43. Re8+ Kh7 44. Rh8+ Bxh8 45. Ka4 Qa6+ 46. Kb4 c5#) 39. bxa3 $2 {[%mdl 8192]} (39. Rxa8 $11 Nb4+ 40. Qxb4 (40. Kxa3 $2 Qxa8+ 41. Ba4 Nc2+ $19) 40... Qxb4 41. Re7) 39... Nc3+ {[%emt 0:02:57]} 40. Qxc3 {[%emt 0:00:57]} Rxa3+ {[%emt 0:00:20]} ({Weaker is} 40... Bxc3 41. R1e7+ Bg7 42. Bg8+ Kg6 43. Bf7+ Kh7 44. Bg8+ Kg6 45. Bf7+ Kh7 46. Bg8+ $11) 41. Kxa3 {[%emt 0:00:05]} Rxc3 {[%emt 0:00:51]} (41... Bxc3 42. R1e7+ Bg7 43. Rxg7+ Kxg7 44. Nh5+ Kh7 (44... Kg6 45. Rg8+ Kxh5 46. Bf7+ Kh4 47. Bg3#) 45. Re7+ Kh8 46. Re8+ Kh7 47. Re7+ Kh8 48. Re8+ Kh7 $16) 0-1

[Event "7th Sharjah Masters 2024"]
[Site "Sharjah"]
[Date "2024.05.17"]
[Round "4.36"]
[White "Kuybokarov, Temur"]
[Black "Sivuk, Vitaly"]
[Result "1-0"]
[ECO "C88"]
[WhiteElo "2602"]
[BlackElo "2544"]
[Annotator "RC"]
[PlyCount "211"]
[EventDate "2024.05.13"]
[EventType "swiss"]
[EventCountry "UAE"]
[SourceTitle "playchess.com"]
[Source "ChessBase"]
[SourceQuality "1"]
[TimeControl "5400+30"]

1. e4 {[%emt 0:00:06]} e5 {[%emt 0:00:10]} 2. Nf3 {[%emt 0:00:08]} Nc6 {[%emt 0:00:09]} 3. Bb5 {[%emt 0:00:14]} a6 {[%emt 0:00:11]} 4. Ba4 {[%emt 0:00:13]} Nf6 {[%emt 0:00:11]} 5. O-O {[%emt 0:00:16]} Be7 {[%emt 0:00:08]} 6. Re1 {[%emt 0:00:28]} b5 {[%emt 0:00:11]} 7. Bb3 {[%emt 0:00:05]} O-O {[%emt 0:00:10]} 8. h3 {[%emt 0:00:38]} Na5 {[%emt 0:00:14]} 9. Nxe5 {[%emt 0:01:11]} Nxb3 {[%emt 0:00:12]} 10. axb3 {[%emt 0:00:26]} Bb7 {[%emt 0:00:05]} 11. d3 {[%emt 0:00:46]} d5 {[%emt 0:00:09]} 12. exd5 {[%emt 0:01:06]} Qxd5 {[%emt 0:00:09]} 13. Qf3 {[%emt 0:01:05]} Bd6 {[%emt 0:00:11]} 14. Kf1 {[%emt 0:01:23]} Rfb8 {[%emt 0:00:10]} 15. Qxd5 {[%emt 0:02:31]} Nxd5 {[%emt 0:00:16]} 16. Bd2 {[%emt 0:04:37]} c5 {[%emt 0:02:40]} 17. Nf3 {[%emt 0:05:25]} Rd8 {[%emt 0:02:21]} 18. Re2 {[%emt 0:06:58]} Rac8 {[%emt 0:02:59]} 19. Nc3 {[%emt 0:03:05]} Nb4 {[%emt 0:00:32]} 20. Ne1 {[%emt 0:03:11]} Bf8 {[%emt 0:01:38]} 21. Ne4 {[%emt 0:03:26]} Nc6 {[%emt 0:13:48]} 22. Nf3 {[%emt 0:10:05]} f6 {[%emt 0:01:23]} 23. g4 {[%emt 0:01:34]} Rd7 {[%emt 0:01:35]} 24. h4 {[%emt 0:04:36]} Kf7 {[%emt 0:12:21]} 25. h5 {[%emt 0:00:55]} h6 {[%emt 0:03:23]} 26. Kg2 {[%emt 0:03:48]} f5 {[%emt 0:18:02]} 27. gxf5 {[%emt 0:02:39]} Rd5 {[%emt 0:02:42]} 28. Ng3 {[%emt 0:08:24]} Nd4 {[%emt 0:01:50]} 29. Nxd4 {[%emt 0:01:51]} cxd4 {[%emt 0:00:09]} 30. Kh3 {[%emt 0:04:57]} Rxc2 {[%emt 0:00:46]} 31. Rc1 {[%emt 0:00:15]} Rxc1 {[%emt 0:06:51]} 32. Bxc1 {[%emt 0:00:19]} Rc5 {[%emt 0:00:09]} 33. Bf4 {[%emt 0:01:56]} Bd5 {[%emt 0:01:45]} 34. Ne4 {[%emt 0:02:31]} Rc6 {[%emt 0:00:33]} 35. Be5 {[%emt 0:08:01]} Bxb3 {[%emt 0:01:58]} 36. Bxd4 {[%emt 0:01:26]} Bd1 {[%emt 0:05:58]} 37. Re3 {[%emt 0:00:16]} Bxh5 {[%emt 0:00:33]} 38. f3 {[%emt 0:00:10]} Kg8 {[%emt 0:03:39]} 39. f4 {[%emt 0:04:19]} Kf7 {[%emt 0:02:56]} 40. Re1 {[%emt 0:02:07]} Rc2 {[%emt 0:03:32]} 41. Ra1 {[%emt 0:00:32]} Rc6 {[%emt 0:03:57]} 42. Be5 {[%emt 0:00:53]} g6 {[%emt 0:01:16]} 43. Ng3 {[%emt 0:00:59]} Bf3 {[%emt 0:00:29]} 44. Rf1 {[%emt 0:00:57]} Bd5 {[%emt 0:00:20]} 45. fxg6+ {[%emt 0:00:17]} Rxg6 {[%emt 0:00:29]} 46. f5 {[%emt 0:00:11]} Rc6 {[%emt 0:00:14]} 47. Ra1 {[%emt 0:02:04]} Bb4 {[%emt 0:01:57]} 48. Ne2 {[%emt 0:00:24]} Rc2 {[%emt 0:01:03]} 49. Nf4 {[%emt 0:00:14]} Bb7 {[%emt 0:00:51]} 50. Rg1 {[%emt 0:00:05]} Bf8 {[%emt 0:00:09]} 51. Rg6 {[%emt 0:00:05]} Bc8 {[%emt 0:01:11]} 52. Rf6+ {[%emt 0:00:23]} Ke8 {[%emt 0:01:02]} 53. Ne6 {[%emt 0:00:20]} Be7 {[%emt 0:00:49]} 54. Rxh6 {[%emt 0:00:23]} a5 {[%emt 0:00:56]} 55. Nc7+ {[%emt 0:01:41]} Kd7 {[%emt 0:02:12]} 56. Rh7 {[%emt 0:01:00]} Kc6 {[%emt 0:02:37]} 57. Rxe7 {[%emt 0:00:27]} Bxf5+ {[%emt 0:00:05]} 58. Kg3 {[%emt 0:00:14]} Bxd3 {[%emt 0:00:09]} 59. Ne6 {[%emt 0:00:28]} Rc4 {[%emt 0:02:23]} 60. Nf4 {[%emt 0:04:01]} Be4 {[%emt 0:00:59]} 61. Rc7+ {[%emt 0:00:57]} Kb6 {[%emt 0:00:06]} 62. Rxc4 {[%emt 0:00:47]} bxc4 {[%emt 0:00:05]} 63. Bd6 {[%emt 0:01:56]} Kb5 {[%emt 0:00:23]} 64. Ne2 {[%emt 0:00:31]} Ka4 {[%emt 0:00:20]} 65. Nc3+ {[%emt 0:02:33]} Kb3 {[%emt 0:00:04]} 66. Nxe4 {[%emt 0:00:25]} Kxb2 {[%emt 0:00:06]} 67. Kf2 {[%emt 0:00:39]} a4 {[%emt 0:00:20]} 68. Ke2 {[%emt 0:00:15]} a3 {[%emt 0:00:23]} 69. Kd1 {[%emt 0:00:21]} a2 {[%emt 0:02:26]} 70. Be5+ {[%emt 0:00:04]} Kb3 {[%emt 0:00:32]} 71. Nd2+ {[%emt 0:00:09]} Kb4 {[%emt 0:00:21]} 72. Kc2 {[%emt 0:00:04]} Kb5 {[%emt 0:00:06]} 73. Kb2 {[%emt 0:00:05]} Kb4 {[%emt 0:00:11]} 74. Bc3+ {[%emt 0:00:05]} Kc5 {[%emt 0:00:03]} 75. Kxa2 {[%emt 0:00:02]} Kd5 {[%emt 0:00:04]} 76. Ka3 {[%emt 0:00:02]} Kc5 {[%emt 0:00:05]} 77. Ka4 {[%emt 0:00:03]} Kd5 {[%emt 0:00:03]} 78. Kb5 {[%emt 0:00:03]} Kd6 {[%emt 0:00:06]} 79. Kxc4 {[%emt 0:00:21]} Kc6 {[%emt 0:00:04]} 80. Ne4 {[%emt 0:00:08]} Kb6 {[%emt 0:00:06]} 81. Kd5 {[%emt 0:00:13]} Kc7 {[%emt 0:00:06]} 82. Nc5 {[%emt 0:01:04]} Kb6 {[%emt 0:00:10]} 83. Ne6 {[%emt 0:01:16]} Kb7 {[%emt 0:00:05]} 84. Kd6 {[%emt 0:00:33]} Kb6 {[%emt 0:00:07]} 85. Nc7 {[%emt 0:00:04]} Kb7 {[%emt 0:00:06]} 86. Bd4 {[%emt 0:00:26]} Kb8 {[%emt 0:00:05]} 87. Kc6 {[%emt 0:00:19]} Kc8 {[%emt 0:00:03]} 88. Ba7 {[%emt 0:00:06]} Kd8 {[%emt 0:00:05]} 89. Nd5 {[%emt 0:00:02]} Ke8 {[%emt 0:00:05]} 90. Kd6 {[%emt 0:00:04]} Kf7 {[%emt 0:00:05]} 91. Ne7 {[%emt 0:00:02]} Kf6 {[%emt 0:00:06]} 92. Be3 {[%emt 0:00:03]} Kf7 {[%emt 0:00:04]} 93. Bg5 {[%emt 0:00:04]} Ke8 {[%emt 0:00:09]} 94. Ng6 {[%emt 0:00:05]} Kf7 {[%emt 0:00:06]} 95. Ne5+ {[%emt 0:00:04]} Ke8 {[%emt 0:00:06]} 96. Ke6 {[%emt 0:00:31]} Kf8 {[%emt 0:00:05]} 97. Bf6 {[%emt 0:00:33]} Ke8 {[%emt 0:00:06]} 98. Nf7 {[%emt 0:00:06]} Kf8 {[%emt 0:00:05]} 99. Nd6 {[%emt 0:00:04]} Kg8 {[%emt 0:00:04]} 100. Kf5 {[%emt 0:00:06]} Kh7 {[%emt 0:00:07]} 101. Kg5 {[%emt 0:00:04]} Kg8 {[%emt 0:00:05]} 102. Kg6 {[%emt 0:00:05]} Kf8 {[%emt 0:00:03]} 103. Bg5 {[%emt 0:00:17]} Kg8 {[%emt 0:00:05]} 104. Be7 {[%emt 0:00:02]} Kh8 {[%emt 0:00:07]} 105. Nf7+ {[%emt 0:00:04]} Kg8 {[%emt 0:00:03]} 106. Nh6+ {[%emt 0:00:02]} 1-0